[Event "Titled Tuesday Blitz August 15 Early 2023"]
[White "Plotnikov, Pavel"]
[Black "Ivanova, Karina"]
[WhiteFideId "4170342"]
[BlackFideId "24139750"]
[WhiteElo "2541"]
[BlackElo "2283"]
[Result "1/2-1/2"]
[Round "3"]
[TimeControl "180+1"]
[Date "2023.08.15"]
[WhiteClock "0:00:08"]
[BlackClock "0:00:02"]
[Board "151"]

1. e4 {[%clk 0:02:59]}  c6 {[%clk 0:02:57]} 2. d4 {[%clk 0:02:57]}  d5 {[%clk 0:02:57]} 3. e5 {[%clk 0:02:56]}  Bf5 {[%clk 0:02:56]} 4. Nf3 {[%clk 0:02:53]}  e6 {[%clk 0:02:55]} 5. Be2 {[%clk 0:02:51]}  Nd7 {[%clk 0:02:54]} 6. O-O {[%clk 0:02:48]}  h6 {[%clk 0:02:53]} 7. c4 {[%clk 0:02:31]}  dxc4 {[%clk 0:02:52]} 8. Bxc4 {[%clk 0:02:29]}  Ne7 {[%clk 0:02:51]} 9. Nc3 {[%clk 0:02:28]}  Nd5 {[%clk 0:02:47]} 10. Bd3 {[%clk 0:02:18]}  Bxd3 {[%clk 0:02:46]} 11. Qxd3 {[%clk 0:02:19]}  Be7 {[%clk 0:02:46]} 12. Nxd5 {[%clk 0:02:14]}  cxd5 {[%clk 0:02:45]} 13. Bd2 {[%clk 0:02:14]}  O-O {[%clk 0:02:45]} 14. Rac1 {[%clk 0:02:12]}  Rc8 {[%clk 0:02:43]} 15. Rc2 {[%clk 0:02:11]}  Rxc2 {[%clk 0:02:40]} 16. Qxc2 {[%clk 0:02:12]}  Qc8 {[%clk 0:02:40]} 17. Rc1 {[%clk 0:02:11]}  Qxc2 {[%clk 0:02:35]} 18. Rxc2 {[%clk 0:02:12]}  Bd8 {[%clk 0:02:35]} 19. Bb4 {[%clk 0:02:07]}  Re8 {[%clk 0:02:32]} 20. Rc8 {[%clk 0:02:05]}  f6 {[%clk 0:02:31]} 21. Bd6 {[%clk 0:01:52]}  Kf7 {[%clk 0:02:27]} 22. h3 {[%clk 0:01:47]}  Bb6 {[%clk 0:02:19]} 23. Rc3 {[%clk 0:01:39]}  f5 {[%clk 0:02:08]} 24. b4 {[%clk 0:01:36]}  a5 {[%clk 0:01:58]} 25. a3 {[%clk 0:01:24]}  g5 {[%clk 0:01:52]} 26. g4 {[%clk 0:01:17]}  fxg4 {[%clk 0:01:49]} 27. hxg4 {[%clk 0:01:18]}  Nb8 {[%clk 0:01:26]} 28. bxa5 {[%clk 0:01:07]}  Bxa5 {[%clk 0:01:25]} 29. Rb3 {[%clk 0:01:02]}  b6 {[%clk 0:01:21]} 30. Bc7 {[%clk 0:00:47]}  Nd7 {[%clk 0:01:20]} 31. Bd6 {[%clk 0:00:43]}  Rc8 {[%clk 0:01:20]} 32. Bb4 {[%clk 0:00:43]}  Bxb4 {[%clk 0:01:14]} 33. axb4 {[%clk 0:00:37]}  b5 {[%clk 0:01:08]} 34. Kf1 {[%clk 0:00:23]}  Rc4 {[%clk 0:01:07]} 35. Ke2 {[%clk 0:00:22]}  Nb6 {[%clk 0:01:05]} 36. Ra3 {[%clk 0:00:16]}  Na4 {[%clk 0:01:04]} 37. Rb3 {[%clk 0:00:15]}  Rc2+ {[%clk 0:01:00]} 38. Ke3 {[%clk 0:00:10]}  Kg6 {[%clk 0:00:56]} 39. Ne1 {[%clk 0:00:10]}  Rc4 {[%clk 0:00:55]} 40. Nd3 {[%clk 0:00:10]}  h5 {[%clk 0:00:53]} 41. gxh5+ {[%clk 0:00:10]}  Kxh5 {[%clk 0:00:53]} 42. f4 {[%clk 0:00:10]}  g4 {[%clk 0:00:44]} 43. f5 {[%clk 0:00:10]}  exf5 {[%clk 0:00:40]} 44. Nf4+ {[%clk 0:00:10]}  Kh4 {[%clk 0:00:30]} 45. Nxd5 {[%clk 0:00:11]}  g3 {[%clk 0:00:29]} 46. Nf4 {[%clk 0:00:11]}  Kg4 {[%clk 0:00:17]} 47. e6 {[%clk 0:00:09]}  Nc3 {[%clk 0:00:14]} 48. e7 {[%clk 0:00:07]}  Rc8 {[%clk 0:00:13]} 49. Nd3 {[%clk 0:00:06]}  Nd5+ {[%clk 0:00:12]} 50. Ke2 {[%clk 0:00:05]}  Nxe7 {[%clk 0:00:12]} 51. Ne5+ {[%clk 0:00:05]}  Kg5 {[%clk 0:00:11]} 52. Rxg3+ {[%clk 0:00:04]}  Kf4 {[%clk 0:00:10]} 53. Rf3+ {[%clk 0:00:04]}  Ke4 {[%clk 0:00:10]} 54. Re3+ {[%clk 0:00:04]}  Kxd4 {[%clk 0:00:09]} 55. Nf3+ {[%clk 0:00:05]}  Kc4 {[%clk 0:00:08]} 56. Rxe7 {[%clk 0:00:06]}  Kxb4 {[%clk 0:00:08]} 57. Re5 {[%clk 0:00:06]}  Rc5 {[%clk 0:00:07]} 58. Rxc5 {[%clk 0:00:06]}  Kxc5 {[%clk 0:00:07]} 59. Nd2 {[%clk 0:00:06]}  b4 {[%clk 0:00:07]} 60. Nb3+ {[%clk 0:00:06]}  Kc4 {[%clk 0:00:07]} 61. Na5+ {[%clk 0:00:06]}  Kb5 {[%clk 0:00:06]} 62. Nb3 {[%clk 0:00:06]}  Kc4 {[%clk 0:00:06]} 63. Na5+ {[%clk 0:00:07]}  Kd4 {[%clk 0:00:05]} 64. Kf3 {[%clk 0:00:06]}  Ke5 {[%clk 0:00:03]} 65. Nc4+ {[%clk 0:00:05]}  Kd5 {[%clk 0:00:02]} 66. Na5 {[%clk 0:00:06]}  Ke5 {[%clk 0:00:01]} 67. Nc6+ {[%clk 0:00:05]}  Kd5 {[%clk 0:00:01]} 68. Nxb4+ {[%clk 0:00:06]}  Kc4 {[%clk 0:00:02]} 69. Kf4 {[%clk 0:00:07]}  Kxb4 {[%clk 0:00:02]} 70. Kxf5 {[%clk 0:00:08]} 1/2-1/2


[Site "https://www.chess.com"]

[Event "Titled Tuesday Blitz August 15 Early 2023"]
[White "Toncheva, Nadya"]
[Black "Kaminski, Victor"]
[WhiteFideId "2924056"]
[BlackFideId "1131630"]
[WhiteElo "2541"]
[BlackElo "2281"]
[Result "1-0"]
[Round "3"]
[TimeControl "180+1"]
[Date "2023.08.15"]
[WhiteClock "0:02:22"]
[BlackClock "0:00:10"]
[Board "152"]

1. e4 {[%clk 0:03:00]}  e5 {[%clk 0:02:57]} 2. Nf3 {[%clk 0:03:00]}  Nc6 {[%clk 0:02:57]} 3. Bb5 {[%clk 0:03:00]}  a6 {[%clk 0:02:54]} 4. Ba4 {[%clk 0:03:00]}  Nf6 {[%clk 0:02:52]} 5. O-O {[%clk 0:03:00]}  Be7 {[%clk 0:02:53]} 6. Re1 {[%clk 0:03:00]}  b5 {[%clk 0:02:53]} 7. Bb3 {[%clk 0:03:00]}  O-O {[%clk 0:02:53]} 8. a4 {[%clk 0:02:59]}  Bb7 {[%clk 0:02:49]} 9. d3 {[%clk 0:02:59]}  d6 {[%clk 0:02:49]} 10. Nbd2 {[%clk 0:02:59]}  Nd7 {[%clk 0:02:47]} 11. Nf1 {[%clk 0:02:59]}  Nc5 {[%clk 0:02:46]} 12. axb5 {[%clk 0:03:00]}  axb5 {[%clk 0:02:41]} 13. Rxa8 {[%clk 0:03:00]}  Qxa8 {[%clk 0:02:39]} 14. Bd5 {[%clk 0:03:01]}  Nb4 {[%clk 0:02:07]} 15. Bxb7 {[%clk 0:03:00]}  Qxb7 {[%clk 0:02:08]} 16. Bd2 {[%clk 0:02:53]}  Nc6 {[%clk 0:02:03]} 17. Ne3 {[%clk 0:02:52]}  Bd8 {[%clk 0:01:49]} 18. Nf5 {[%clk 0:02:44]}  Ne7 {[%clk 0:01:45]} 19. N3h4 {[%clk 0:02:43]}  Nxf5 {[%clk 0:01:40]} 20. Nxf5 {[%clk 0:02:43]}  g6 {[%clk 0:01:16]} 21. Qg4 {[%clk 0:02:40]}  Bf6 {[%clk 0:00:50]} 22. Nh6+ {[%clk 0:02:32]}  Kg7 {[%clk 0:00:44]} 23. Qh3 {[%clk 0:02:30]}  Ne6 {[%clk 0:00:25]} 24. Ng4 {[%clk 0:02:24]}  Ng5 {[%clk 0:00:10]} 25. Qh6+ {[%clk 0:02:22]} 1-0


[Site "https://www.chess.com"]

[Event "Titled Tuesday Blitz August 15 Early 2023"]
[White "slimshady"]
[Black "Arutla, Aditya"]
[BlackFideId "30961998"]
[WhiteElo "2271"]
[BlackElo "2539"]
[Result "1-0"]
[Round "3"]
[TimeControl "180+1"]
[Date "2023.08.15"]
[WhiteClock "0:01:29"]
[BlackClock "0:01:05"]
[Board "154"]

1. e4 {[%clk 0:03:00]}  c5 {[%clk 0:02:59]} 2. Nf3 {[%clk 0:03:00]}  Nc6 {[%clk 0:03:00]} 3. Bb5 {[%clk 0:02:58]}  g6 {[%clk 0:03:00]} 4. O-O {[%clk 0:02:58]}  Bg7 {[%clk 0:03:00]} 5. Re1 {[%clk 0:02:58]}  Nf6 {[%clk 0:03:00]} 6. c3 {[%clk 0:02:58]}  O-O {[%clk 0:03:00]} 7. h3 {[%clk 0:02:59]}  d5 {[%clk 0:02:57]} 8. e5 {[%clk 0:02:58]}  Nd7 {[%clk 0:02:56]} 9. d4 {[%clk 0:02:59]}  e6 {[%clk 0:02:54]} 10. Be3 {[%clk 0:02:56]}  Qb6 {[%clk 0:02:52]} 11. Bxc6 {[%clk 0:02:55]}  bxc6 {[%clk 0:02:52]} 12. b3 {[%clk 0:02:55]}  cxd4 {[%clk 0:02:49]} 13. cxd4 {[%clk 0:02:56]}  Ba6 {[%clk 0:02:47]} 14. Nc3 {[%clk 0:02:53]}  Rfe8 {[%clk 0:02:38]} 15. Rc1 {[%clk 0:02:49]}  Rac8 {[%clk 0:02:34]} 16. Na4 {[%clk 0:02:49]}  Qc7 {[%clk 0:02:31]} 17. Qd2 {[%clk 0:02:41]}  Bb5 {[%clk 0:02:28]} 18. Nc5 {[%clk 0:02:41]}  Nxc5 {[%clk 0:02:27]} 19. Rxc5 {[%clk 0:02:41]}  Bf8 {[%clk 0:02:24]} 20. Rc2 {[%clk 0:02:41]}  a5 {[%clk 0:02:12]} 21. a4 {[%clk 0:02:36]}  Ba6 {[%clk 0:02:11]} 22. Rec1 {[%clk 0:02:36]}  Bb7 {[%clk 0:02:08]} 23. Ne1 {[%clk 0:02:24]}  Ba8 {[%clk 0:02:06]} 24. Nd3 {[%clk 0:02:24]}  Rb8 {[%clk 0:02:06]} 25. Nc5 {[%clk 0:02:04]}  Bxc5 {[%clk 0:02:03]} 26. Rxc5 {[%clk 0:02:05]}  Rxb3 {[%clk 0:02:04]} 27. Rxa5 {[%clk 0:02:05]}  Bb7 {[%clk 0:02:01]} 28. Rac5 {[%clk 0:02:02]}  Ra8 {[%clk 0:02:00]} 29. a5 {[%clk 0:01:56]}  Qd8 {[%clk 0:01:50]} 30. Bg5 {[%clk 0:01:56]}  Qe8 {[%clk 0:01:47]} 31. Qa2 {[%clk 0:01:44]}  Rb5 {[%clk 0:01:45]} 32. Bf6 {[%clk 0:01:44]}  Rxc5 {[%clk 0:01:43]} 33. Rxc5 {[%clk 0:01:44]}  Ba6 {[%clk 0:01:43]} 34. Qc2 {[%clk 0:01:40]}  Bc4 {[%clk 0:01:43]} 35. Qd2 {[%clk 0:01:40]}  Ra6 {[%clk 0:01:40]} 36. Bg5 {[%clk 0:01:36]}  h5 {[%clk 0:01:36]} 37. Qf4 {[%clk 0:01:31]}  Kh7 {[%clk 0:01:21]} 38. g4 {[%clk 0:01:30]}  hxg4 {[%clk 0:01:19]} 39. Qxg4 {[%clk 0:01:31]}  Qh8 {[%clk 0:01:05]} 40. Bf6 {[%clk 0:01:29]} 1-0


[Site "https://www.chess.com"]

[Event "Titled Tuesday Blitz August 15 Early 2023"]
[White "Jaskolka, Tomasz"]
[Black "bteillet"]
[WhiteFideId "1170791"]
[WhiteElo "2537"]
[BlackElo "2245"]
[Result "1-0"]
[Round "3"]
[TimeControl "180+1"]
[Date "2023.08.15"]
[WhiteClock "0:02:01"]
[BlackClock "0:01:23"]
[Board "156"]

1. e4 {[%clk 0:02:57]}  d6 {[%clk 0:02:59]} 2. d4 {[%clk 0:02:56]}  Nf6 {[%clk 0:02:58]} 3. Nc3 {[%clk 0:02:56]}  g6 {[%clk 0:02:57]} 4. Bf4 {[%clk 0:02:54]}  Bg7 {[%clk 0:02:49]} 5. Qd2 {[%clk 0:02:55]}  c6 {[%clk 0:02:44]} 6. O-O-O {[%clk 0:02:54]}  b5 {[%clk 0:02:38]} 7. f3 {[%clk 0:02:50]}  O-O {[%clk 0:02:23]} 8. Bh6 {[%clk 0:02:47]}  Nbd7 {[%clk 0:02:11]} 9. h4 {[%clk 0:02:41]}  b4 {[%clk 0:02:08]} 10. Nce2 {[%clk 0:02:40]}  c5 {[%clk 0:02:04]} 11. h5 {[%clk 0:02:33]}  Ba6 {[%clk 0:01:49]} 12. Bxg7 {[%clk 0:02:20]}  Kxg7 {[%clk 0:01:49]} 13. hxg6 {[%clk 0:02:20]}  fxg6 {[%clk 0:01:49]} 14. Qh6+ {[%clk 0:02:21]}  Kg8 {[%clk 0:01:50]} 15. Nf4 {[%clk 0:02:16]}  Bxf1 {[%clk 0:01:40]} 16. Ne6 {[%clk 0:02:12]}  Rf7 {[%clk 0:01:30]} 17. Nxd8 {[%clk 0:02:12]}  Rxd8 {[%clk 0:01:30]} 18. Rxf1 {[%clk 0:02:10]}  Nxe4 {[%clk 0:01:30]} 19. Nh3 {[%clk 0:02:05]}  Ng3 {[%clk 0:01:29]} 20. Ng5 {[%clk 0:02:05]}  Nxh1 {[%clk 0:01:26]} 21. Nxf7 {[%clk 0:02:03]}  Kxf7 {[%clk 0:01:26]} 22. Qxh7+ {[%clk 0:02:03]}  Ke6 {[%clk 0:01:26]} 23. Qxg6+ {[%clk 0:02:03]}  Nf6 {[%clk 0:01:26]} 24. Rxh1 {[%clk 0:02:01]}  cxd4 {[%clk 0:01:26]} 25. Re1+ {[%clk 0:02:01]}  Kd7 {[%clk 0:01:26]} 26. Qf5+ {[%clk 0:02:01]}  Ke8 {[%clk 0:01:23]} 27. Qxf6 {[%clk 0:02:01]} 1-0


[Site "https://www.chess.com"]

[Event "Titled Tuesday Blitz August 15 Early 2023"]
[White "Clawitter, Craig"]
[Black "Gontcharov, Vladislav"]
[WhiteFideId "2023105"]
[BlackFideId "4123492"]
[WhiteElo "2246"]
[BlackElo "2536"]
[Result "0-1"]
[Round "3"]
[TimeControl "180+1"]
[Date "2023.08.15"]
[WhiteClock "0:00:04"]
[BlackClock "0:00:31"]
[Board "157"]

1. e4 {[%clk 0:02:59]}  e6 {[%clk 0:02:58]} 2. d4 {[%clk 0:02:58]}  d5 {[%clk 0:02:58]} 3. e5 {[%clk 0:02:59]}  c5 {[%clk 0:02:58]} 4. c3 {[%clk 0:02:59]}  Nc6 {[%clk 0:02:58]} 5. Nf3 {[%clk 0:03:00]}  Nge7 {[%clk 0:02:57]} 6. Bd3 {[%clk 0:02:50]}  cxd4 {[%clk 0:02:55]} 7. cxd4 {[%clk 0:02:50]}  Nf5 {[%clk 0:02:55]} 8. Be3 {[%clk 0:02:38]}  Nxe3 {[%clk 0:02:24]} 9. fxe3 {[%clk 0:02:39]}  f5 {[%clk 0:02:23]} 10. exf6 {[%clk 0:02:35]}  Qxf6 {[%clk 0:02:23]} 11. O-O {[%clk 0:02:34]}  Qh6 {[%clk 0:02:21]} 12. Nc3 {[%clk 0:02:09]}  Bd6 {[%clk 0:02:12]} 13. Nb5 {[%clk 0:01:42]}  Bb8 {[%clk 0:02:08]} 14. Ne5 {[%clk 0:01:00]}  Nxe5 {[%clk 0:02:00]} 15. dxe5 {[%clk 0:00:58]}  Qxe3+ {[%clk 0:01:58]} 16. Kh1 {[%clk 0:00:58]}  Qxe5 {[%clk 0:01:58]} 17. g3 {[%clk 0:00:51]}  a6 {[%clk 0:01:56]} 18. Qf3 {[%clk 0:00:33]}  axb5 {[%clk 0:01:29]} 19. Qf7+ {[%clk 0:00:29]}  Kd8 {[%clk 0:01:29]} 20. Rac1 {[%clk 0:00:20]}  Bd7 {[%clk 0:01:05]} 21. a3 {[%clk 0:00:15]}  Ra6 {[%clk 0:00:43]} 22. Rfe1 {[%clk 0:00:11]}  Qf6 {[%clk 0:00:38]} 23. Qh5 {[%clk 0:00:09]}  g6 {[%clk 0:00:37]} 24. Qe2 {[%clk 0:00:09]}  Rc6 {[%clk 0:00:35]} 25. Bxb5 {[%clk 0:00:08]}  Rxc1 {[%clk 0:00:35]} 26. Rxc1 {[%clk 0:00:07]}  Bxb5 {[%clk 0:00:30]} 27. Qxb5 {[%clk 0:00:07]}  Qf3+ {[%clk 0:00:30]} 28. Kg1 {[%clk 0:00:07]}  Ba7+ {[%clk 0:00:31]} 29. Rc5 {[%clk 0:00:05]}  Qe3+ {[%clk 0:00:31]} 30. Kg2 {[%clk 0:00:04]}  Qxc5 {[%clk 0:00:31]} 0-1


[Site "https://www.chess.com"]

[Event "Titled Tuesday Blitz August 15 Early 2023"]
[White "ArtemDyachuk"]
[Black "Sarkar, Justin"]
[BlackFideId "2010011"]
[WhiteElo "2535"]
[BlackElo "2241"]
[Result "0-1"]
[Round "3"]
[TimeControl "180+1"]
[Date "2023.08.15"]
[WhiteClock "0:00:18"]
[BlackClock "0:00:04"]
[Board "158"]

1. e4 {[%clk 0:03:00]}  e5 {[%clk 0:02:41]} 2. Nf3 {[%clk 0:03:00]}  Nc6 {[%clk 0:02:40]} 3. Bc4 {[%clk 0:03:00]}  Nf6 {[%clk 0:02:36]} 4. d3 {[%clk 0:03:00]}  Bc5 {[%clk 0:02:33]} 5. O-O {[%clk 0:02:59]}  O-O {[%clk 0:02:30]} 6. Bg5 {[%clk 0:02:55]}  h6 {[%clk 0:02:19]} 7. Bh4 {[%clk 0:02:55]}  Be7 {[%clk 0:02:14]} 8. Bg3 {[%clk 0:02:46]}  d6 {[%clk 0:02:04]} 9. c3 {[%clk 0:02:23]}  Nh5 {[%clk 0:02:00]} 10. d4 {[%clk 0:02:19]}  Bg4 {[%clk 0:01:49]} 11. h3 {[%clk 0:01:59]}  Nxg3 {[%clk 0:01:40]} 12. fxg3 {[%clk 0:02:00]}  Bxf3 {[%clk 0:01:33]} 13. Qxf3 {[%clk 0:02:01]}  exd4 {[%clk 0:01:25]} 14. Bxf7+ {[%clk 0:01:27]}  Kh8 {[%clk 0:01:25]} 15. Qh5 {[%clk 0:01:22]}  Bf6 {[%clk 0:01:09]} 16. Bb3 {[%clk 0:01:18]}  Qe7 {[%clk 0:00:58]} 17. Bc2 {[%clk 0:01:13]}  Bg5 {[%clk 0:00:55]} 18. Re1 {[%clk 0:01:03]}  Qe5 {[%clk 0:00:43]} 19. Kh2 {[%clk 0:00:59]}  Rf2 {[%clk 0:00:34]} 20. Re2 {[%clk 0:00:57]}  Raf8 {[%clk 0:00:22]} 21. Rxf2 {[%clk 0:00:30]}  Rxf2 {[%clk 0:00:21]} 22. Na3 {[%clk 0:00:31]}  dxc3 {[%clk 0:00:15]} 23. bxc3 {[%clk 0:00:28]}  Qxc3 {[%clk 0:00:09]} 24. Qe8+ {[%clk 0:00:22]}  Kh7 {[%clk 0:00:09]} 25. e5+ {[%clk 0:00:18]}  Rxc2 {[%clk 0:00:09]} 26. Nxc2 {[%clk 0:00:19]}  Qxc2 {[%clk 0:00:04]} 27. e6 {[%clk 0:00:18]}  Qe4 {[%clk 0:00:03]} 28. Rf1 {[%clk 0:00:15]}  Ne5 {[%clk 0:00:01]} 29. Rf8 {[%clk 0:00:14]}  Ng6 {[%clk 0:00:01]} 30. Rf7 {[%clk 0:00:09]}  h5 {[%clk 0:00:01]} 31. Qd7 {[%clk 0:00:05]}  Qe5 {[%clk 0:00:01]} 32. Qxc7 {[%clk 0:00:04]}  h4 {[%clk 0:00:02]} 33. Rf3 {[%clk 0:00:03]}  hxg3+ {[%clk 0:00:02]} 34. Rxg3 {[%clk 0:00:03]}  Bf4 {[%clk 0:00:01]} 35. Qc3 {[%clk 0:00:03]}  Bxg3+ {[%clk 0:00:01]} 36. Qxg3 {[%clk 0:00:04]}  Qxg3+ {[%clk 0:00:01]} 37. Kh1 {[%clk 0:00:05]}  Ne7 {[%clk 0:00:01]} 38. Kg1 {[%clk 0:00:05]}  Nf5 {[%clk 0:00:01]} 39. Kf1 {[%clk 0:00:05]}  Ne7 {[%clk 0:00:01]} 40. Ke2 {[%clk 0:00:06]}  Nd5 {[%clk 0:00:02]} 41. Kd2 {[%clk 0:00:07]}  Ne7 {[%clk 0:00:02]} 42. Kc2 {[%clk 0:00:07]}  Qxg2+ {[%clk 0:00:03]} 43. Kd3 {[%clk 0:00:07]}  Qxh3+ {[%clk 0:00:03]} 44. Kd2 {[%clk 0:00:07]}  Qxe6 {[%clk 0:00:04]} 45. Kc3 {[%clk 0:00:08]}  Qxa2 {[%clk 0:00:04]} 46. Kd3 {[%clk 0:00:08]}  Nd5 {[%clk 0:00:04]} 47. Kd4 {[%clk 0:00:09]}  Qb3 {[%clk 0:00:05]} 48. Ke4 {[%clk 0:00:10]}  Qc3 {[%clk 0:00:05]} 49. Kf5 {[%clk 0:00:11]}  Qd3+ {[%clk 0:00:05]} 50. Ke6 {[%clk 0:00:12]}  Qe4+ {[%clk 0:00:05]} 51. Kd7 {[%clk 0:00:12]}  Nf6+ {[%clk 0:00:05]} 52. Kd8 {[%clk 0:00:13]}  Qf4 {[%clk 0:00:04]} 53. Kc7 {[%clk 0:00:14]}  d5+ {[%clk 0:00:04]} 54. Kc8 {[%clk 0:00:15]}  d4 {[%clk 0:00:04]} 55. Kd8 {[%clk 0:00:15]}  d3 {[%clk 0:00:04]} 56. Kc8 {[%clk 0:00:16]}  d2 {[%clk 0:00:05]} 57. Kd8 {[%clk 0:00:17]}  d1=Q+ {[%clk 0:00:04]} 58. Kc8 {[%clk 0:00:18]}  Qd7# {[%clk 0:00:04]} 0-1


[Site "https://www.chess.com"]

[Event "Titled Tuesday Blitz August 15 Early 2023"]
[White "le-castor-faineant"]
[Black "Ginzburg, Yakov"]
[BlackFideId "4157176"]
[WhiteElo "2181"]
[BlackElo "2529"]
[Result "0-1"]
[Round "3"]
[TimeControl "180+1"]
[Date "2023.08.15"]
[WhiteClock "0:01:56"]
[BlackClock "0:01:35"]
[Board "161"]

1. e4 {[%clk 0:03:00]}  c5 {[%clk 0:02:59]} 2. Nf3 {[%clk 0:02:58]}  e6 {[%clk 0:02:59]} 3. c3 {[%clk 0:02:54]}  d5 {[%clk 0:02:57]} 4. exd5 {[%clk 0:02:54]}  exd5 {[%clk 0:02:57]} 5. d4 {[%clk 0:02:55]}  Nf6 {[%clk 0:02:56]} 6. Bd3 {[%clk 0:02:54]}  c4 {[%clk 0:02:45]} 7. Bc2 {[%clk 0:02:53]}  Qe7+ {[%clk 0:02:45]} 8. Qe2 {[%clk 0:02:51]}  Qxe2+ {[%clk 0:02:45]} 9. Kxe2 {[%clk 0:02:52]}  Nc6 {[%clk 0:02:36]} 10. Re1 {[%clk 0:02:50]}  Bg4 {[%clk 0:02:32]} 11. h3 {[%clk 0:02:48]}  Bxf3+ {[%clk 0:02:30]} 12. Kxf3+ {[%clk 0:02:49]}  Be7 {[%clk 0:02:30]} 13. Bf4 {[%clk 0:02:38]}  O-O {[%clk 0:02:26]} 14. Nd2 {[%clk 0:02:38]}  Rfe8 {[%clk 0:02:25]} 15. g4 {[%clk 0:02:34]}  h6 {[%clk 0:02:22]} 16. Re2 {[%clk 0:02:30]}  b5 {[%clk 0:02:19]} 17. a3 {[%clk 0:02:22]}  a5 {[%clk 0:02:17]} 18. Rae1 {[%clk 0:02:12]}  b4 {[%clk 0:02:15]} 19. axb4 {[%clk 0:02:10]}  axb4 {[%clk 0:02:15]} 20. Bb1 {[%clk 0:02:03]}  bxc3 {[%clk 0:01:48]} 21. bxc3 {[%clk 0:02:03]}  Ra3 {[%clk 0:01:48]} 22. Bd6 {[%clk 0:02:02]}  Nxd4+ {[%clk 0:01:37]} 23. Kg2 {[%clk 0:01:56]}  Nxe2 {[%clk 0:01:35]} 0-1


[Site "https://www.chess.com"]

[Event "Titled Tuesday Blitz August 15 Early 2023"]
[White "Aung Thant Zin"]
[Black "Lima, Kleyton Alcantara"]
[WhiteFideId "13000063"]
[BlackFideId "22718397"]
[WhiteElo "2150"]
[BlackElo "2519"]
[Result "0-1"]
[Round "3"]
[TimeControl "180+1"]
[Date "2023.08.15"]
[WhiteClock "0:00:34"]
[BlackClock "0:00:34"]
[Board "163"]

1. e4 {[%clk 0:02:59]}  c5 {[%clk 0:03:00]} 2. Nf3 {[%clk 0:02:59]}  d6 {[%clk 0:03:00]} 3. Bb5+ {[%clk 0:02:59]}  Nd7 {[%clk 0:02:59]} 4. O-O {[%clk 0:02:59]}  a6 {[%clk 0:02:57]} 5. Bxd7+ {[%clk 0:02:58]}  Bxd7 {[%clk 0:02:58]} 6. c3 {[%clk 0:02:58]}  e6 {[%clk 0:02:55]} 7. d4 {[%clk 0:02:57]}  cxd4 {[%clk 0:02:54]} 8. cxd4 {[%clk 0:02:57]}  Nf6 {[%clk 0:02:55]} 9. Nc3 {[%clk 0:02:56]}  Be7 {[%clk 0:02:30]} 10. e5 {[%clk 0:02:54]}  Nd5 {[%clk 0:02:30]} 11. Nxd5 {[%clk 0:02:47]}  exd5 {[%clk 0:02:31]} 12. exd6 {[%clk 0:02:46]}  Bxd6 {[%clk 0:02:31]} 13. Re1+ {[%clk 0:02:45]}  Be6 {[%clk 0:02:31]} 14. Ng5 {[%clk 0:02:42]}  Qf6 {[%clk 0:02:30]} 15. Nxe6 {[%clk 0:02:36]}  fxe6 {[%clk 0:02:31]} 16. Qg4 {[%clk 0:02:36]}  Kd7 {[%clk 0:02:25]} 17. Be3 {[%clk 0:02:18]}  Rac8 {[%clk 0:02:22]} 18. Rac1 {[%clk 0:02:15]}  Rhf8 {[%clk 0:02:18]} 19. f3 {[%clk 0:02:05]}  Rc6 {[%clk 0:02:11]} 20. Rxc6 {[%clk 0:02:03]}  bxc6 {[%clk 0:02:12]} 21. Bf2 {[%clk 0:02:03]}  Rb8 {[%clk 0:01:57]} 22. b3 {[%clk 0:02:02]}  Rb4 {[%clk 0:01:44]} 23. Qh5 {[%clk 0:01:56]}  Qg6 {[%clk 0:01:42]} 24. Qh3 {[%clk 0:01:42]}  a5 {[%clk 0:01:37]} 25. g3 {[%clk 0:01:27]}  Ke7 {[%clk 0:01:37]} 26. f4 {[%clk 0:01:22]}  Bxf4 {[%clk 0:01:31]} 27. Qf1 {[%clk 0:01:19]}  Bd6 {[%clk 0:01:24]} 28. Qa6 {[%clk 0:01:17]}  Kd7 {[%clk 0:01:20]} 29. Qxa5 {[%clk 0:01:13]}  Rb7 {[%clk 0:01:20]} 30. Qa6 {[%clk 0:01:11]}  Rc7 {[%clk 0:01:18]} 31. Qe2 {[%clk 0:01:02]}  Ke7 {[%clk 0:01:08]} 32. Kg2 {[%clk 0:00:57]}  h5 {[%clk 0:01:06]} 33. a4 {[%clk 0:00:51]}  h4 {[%clk 0:01:03]} 34. a5 {[%clk 0:00:48]}  Ra7 {[%clk 0:00:56]} 35. a6 {[%clk 0:00:46]}  hxg3 {[%clk 0:00:52]} 36. hxg3 {[%clk 0:00:44]}  Kd7 {[%clk 0:00:53]} 37. Ra1 {[%clk 0:00:37]}  Qf5 {[%clk 0:00:51]} 38. Qf3 {[%clk 0:00:34]}  Qxf3+ {[%clk 0:00:48]} 39. Kxf3 {[%clk 0:00:34]}  Kc7 {[%clk 0:00:49]} 40. Kg4 {[%clk 0:00:33]}  Kb6 {[%clk 0:00:47]} 41. Kg5 {[%clk 0:00:33]}  Rxa6 {[%clk 0:00:46]} 42. Rxa6+ {[%clk 0:00:33]}  Kxa6 {[%clk 0:00:47]} 43. Kg6 {[%clk 0:00:34]}  Kb5 {[%clk 0:00:45]} 44. Be1 {[%clk 0:00:32]}  e5 {[%clk 0:00:40]} 45. Kxg7 {[%clk 0:00:31]}  exd4 {[%clk 0:00:35]} 46. Kf7 {[%clk 0:00:32]}  Bb4 {[%clk 0:00:35]} 47. Bf2 {[%clk 0:00:30]}  d3 {[%clk 0:00:34]} 48. Be3 {[%clk 0:00:31]}  d2 {[%clk 0:00:35]} 49. Bxd2 {[%clk 0:00:32]}  Bxd2 {[%clk 0:00:36]} 50. g4 {[%clk 0:00:33]}  Bc1 {[%clk 0:00:36]} 51. Ke6 {[%clk 0:00:33]}  d4 {[%clk 0:00:34]} 52. Ke5 {[%clk 0:00:34]} 0-1


[Site "https://www.chess.com"]